[Event "XIV American Continental-ch 2019"]
[Site "Sao Paulo"]
[Date "2019.07.08"]
[Round "5.1"]
[White "Fier, Alexandr"]
[Black "Pichot, Alan"]
[Result "0-1"]
[ECO "E62"]
[WhiteElo "2547"]
[BlackElo "2579"]
[Annotator "ChessBase"]
[PlyCount "118"]
[EventDate "2019.07.05"]
[EventType "swiss"]
[EventCountry "BRA"]
[SourceTitle "playchess.com"]
[Source "ChessBase"]
[SourceQuality "1"]
[TimeControl "40/5400+30:1800+30"]

1. d4 {[%emt 0:00:00]} Nf6 {[%emt 0:00:00]} 2. c4 {[%emt 0:00:00]} g6 {[%emt 0:00:00]} 3. g3 {[%emt 0:00:00]} Bg7 {[%emt 0:00:06]} 4. Bg2 {[%emt 0:00:00]} O-O {[%emt 0:00:15]} 5. Nc3 {[%emt 0:00:00]} d6 {[%emt 0:00:19]} 6. Nf3 {[%emt 0:00:00]} Nc6 {[%emt 0:00:13]} 7. O-O {[%emt 0:00:02]} e5 {[%emt 0:00:12]} 8. dxe5 {[%emt 0:00:04]} dxe5 {[%emt 0:00:12]} 9. Bg5 {[%emt 0:00:04]} Be6 {[%emt 0:00:10]} 10. Nd2 {[%emt 0:00:13]} Qc8 {[%emt 0:02:12]} 11. Nd5 {[%emt 0:02:13]} Nd7 {[%emt 0:00:59]} 12. b4 {[%emt 0:01:12]} h6 {[%emt 0:00:29]} 13. Be3 {[%emt 0:06:10]} Re8 {[%emt 0:04:10]} 14. Rc1 {[%emt 0:00:53]} f5 {[%emt 0:06:07]} 15. b5 {[%emt 0:05:06]} Nd8 {[%emt 0:03:08]} 16. Nb3 {[%emt 0:01:49]} c6 {[%emt 0:04:44]} 17. a4 {[%emt 0:08:33]} Bf7 {[%emt 0:02:04]} 18. Nc3 {[%emt 0:07:43]} e4 {[%emt 0:01:32]} 19. bxc6 {[%emt 0:09:11]} bxc6 {[%emt 0:01:17]} 20. Bd4 {[%emt 0:09:23]} Ne5 {[%emt 0:04:09]} 21. Nc5 {[%emt 0:05:54]} Ne6 {[%emt 0:01:51]} 22. Nxe6 {[%emt 0:00:06]} Qxe6 {[%emt 0:00:08]} 23. Qb3 {[%emt 0:05:47]} Rab8 {[%emt 0:05:38]} 24. Qa2 {[%emt 0:03:30]} Qxc4 {[%emt 0:01:55]} 25. Qxc4 {[%emt 0:00:11]} Nxc4 {[%emt 0:00:05]} 26. Bxg7 {[%emt 0:00:55]} Kxg7 {[%emt 0:00:05]} 27. Rfd1 {[%emt 0:00:10]} Red8 {[%emt 0:05:07]} 28. Rxd8 {[%emt 0:00:28]} Rxd8 {[%emt 0:00:07]} 29. f3 {[%emt 0:00:02]} exf3 {[%emt 0:00:28]} 30. Bxf3 {[%emt 0:00:22]} Ne5 {[%emt 0:00:16]} 31. Bg2 {[%emt 0:00:37]} Rd2 {[%emt 0:03:19]} 32. e4 {[%emt 0:02:17]} fxe4 {[%emt 0:02:42]} 33. Bxe4 {[%emt 0:02:55]} g5 {[%emt 0:03:30]} 34. h4 {[%emt 0:03:31]} gxh4 {[%emt 0:05:19]} 35. gxh4 {[%emt 0:00:04]} Bg6 {[%emt 0:00:16]} 36. Rb1 {[%emt 0:11:00]} Bxe4 {[%emt 0:10:52]} 37. Nxe4 {[%emt 0:00:30]} Rd4 {[%emt 0:00:07]} 38. Rb7+ {[%emt 0:03:14]} Kg6 {[%emt 0:00:05]} 39. Nc5 {[%emt 0:00:04]} Rc4 {[%emt 0:00:25]} 40. Nd7 {[%emt 0:00:33]} Nxd7 {[%emt 0:02:57]} 41. Rxd7 {[%emt 0:30:04]} a5 {[%emt 0:30:06]} 42. Rd6+ {[%emt 0:00:35]} Kh5 {[%emt 0:00:21]} 43. Kg2 {[%emt 0:00:02]} Rxh4 {[%emt 0:00:23]} 44. Rxc6 {[%emt 0:00:04]} Rxa4 {[%emt 0:00:05]} 45. Ra6 {[%emt 0:02:09]} Ra3 {[%emt 0:01:51]} 46. Ra8 {[%emt 0:00:12]} Kg4 {[%emt 0:01:12]} 47. Rg8+ {[%emt 0:00:08]} Kh4 {[%emt 0:00:07]} 48. Rc8 {[%emt 0:04:47]} Rg3+ {[%emt 0:05:34]} 49. Kf2 {[%emt 0:00:35]} h5 {[%emt 0:01:13]} 50. Rc4+ {[%emt 0:02:31]} Rg4 {[%emt 0:00:11]} 51. Rc5 {[%emt 0:00:03]} a4 {[%emt 0:00:45]} 52. Ra5 {[%emt 0:00:03]} Rb4 {[%emt 0:00:15]} 53. Kf3 {[%emt 0:01:44]} Rb3+ {[%emt 0:00:08]} 54. Kg2 {[%emt 0:00:02]} a3 {[%emt 0:01:10]} 55. Ra4+ {[%emt 0:00:07]} Kg5 {[%emt 0:00:04]} 56. Ra5+ {[%emt 0:00:03]} Kf4 {[%emt 0:00:39]} 57. Rxh5 {[%emt 0:01:28]} Rb2+ {[%emt 0:00:10]} 58. Kh3 {[%emt 0:00:06]} a2 {[%emt 0:00:05]} 59. Ra5 {[%emt 0:00:03]} Ke3 0-1

[Event "XIV American Continental-ch 2019"]
[Site "Sao Paulo"]
[Date "2019.07.08"]
[Round "5.2"]
[White "Iturrizaga Bonelli, Eduardo"]
[Black "Krysa, Leandro"]
[Result "1-0"]
[ECO "D71"]
[WhiteElo "2625"]
[BlackElo "2517"]
[Annotator "RC"]
[PlyCount "73"]
[EventDate "2019.07.05"]
[EventType "swiss"]
[EventCountry "BRA"]
[SourceTitle "playchess.com"]
[Source "ChessBase"]
[SourceQuality "1"]
[TimeControl "40/5400+30:1800+30"]

1. d4 {[%emt 0:03:09]} Nf6 {[%emt 0:00:00]} 2. c4 {[%emt 0:00:20]} g6 {[%emt 0:00:13]} 3. g3 {[%emt 0:00:33]} c6 {[%emt 0:01:19]} 4. Bg2 {[%emt 0:05:44]} d5 {[%emt 0:00:10]} 5. Nd2 {[%emt 0:02:01]} Bg7 {[%emt 0:01:46]} 6. Ngf3 {[%emt 0:00:05]} O-O {[%emt 0:00:09]} 7. O-O {[%emt 0:00:19]} Bf5 {[%emt 0:00:51]} 8. b3 {[%emt 0:00:35]} a5 {[%emt 0:00:07]} 9. a3 {[%emt 0:02:38]} Ne4 {[%emt 0:08:35]} 10. Bb2 {[%emt 0:00:45]} a4 {[%emt 0:05:05]} 11. b4 {[%emt 0:00:57]} Nd6 {[%emt 0:01:30]} 12. c5 {[%emt 0:03:28]} Nb5 {[%emt 0:03:30]} 13. Re1 {[%emt 0:00:19]} Nd7 {[%emt 0:07:15]} 14. h3 {[%emt 0:12:02]} b6 {[%emt 0:12:13]} 15. cxb6 {[%emt 0:16:05]} c5 {[%emt 0:11:12]} 16. g4 {[%emt 0:18:09]} Be4 {[%emt 0:08:49]} 17. Nxe4 {[%emt 0:19:28]} dxe4 {[%emt 0:00:29]} 18. Ne5 {[%emt 0:06:51]} Nxe5 {[%emt 0:24:27]} 19. dxe5 {[%emt 0:00:04]} Qxb6 {[%emt 0:02:13]} 20. bxc5 {[%emt 0:00:52]} Qxc5 {[%emt 0:00:37]} 21. Rc1 {[%emt 0:00:03]} Qa7 {[%emt 0:01:06]} 22. Bxe4 {[%emt 0:03:01]} Rad8 {[%emt 0:00:46]} 23. Qc2 {[%emt 0:00:02]} Nd4 {[%emt 0:06:41]} 24. Qc5 {[%emt 0:00:02]} Qxc5 {[%emt 0:00:34]} 25. Rxc5 {[%emt 0:00:04]} Nb3 {[%emt 0:00:50]} 26. Rc4 {[%emt 0:00:30]} Rd2 {[%emt 0:00:24]} 27. Bc3 {[%emt 0:00:06]} Ra2 {[%emt 0:00:27]} 28. f4 {[%emt 0:04:03]} Rxa3 {[%emt 0:01:00]} 29. Rd1 {[%emt 0:00:09]} Ra2 {[%emt 0:00:25]} 30. Kf2 {[%emt 0:00:06]} Rb8 {[%emt 0:01:11]} 31. Rc7 {[%emt 0:00:43]} a3 {[%emt 0:00:49]} 32. Bb1 {[%emt 0:01:06]} Rb2 {[%emt 0:00:24]} 33. Bxb2 {[%emt 0:00:04]} axb2 {[%emt 0:00:02]} 34. Rdd7 {[%emt 0:00:45]} Rb4 {[%emt 0:01:19]} 35. Rc8+ {[%emt 0:00:51]} Bf8 {[%emt 0:00:03]} 36. Rdd8 {[%emt 0:00:08]} Rxf4+ {[%emt 0:00:33]} 37. Ke3 {[%emt 0:00:34]} 1-0

[Event "XIV American Continental-ch 2019"]
[Site "Sao Paulo"]
[Date "2019.07.08"]
[Round "5.3"]
[White "Hambleton, Aman"]
[Black "Leitao, Rafael"]
[Result "1/2-1/2"]
[ECO "A45"]
[WhiteElo "2487"]
[BlackElo "2616"]
[Annotator "RC"]
[PlyCount "38"]
[EventDate "2019.07.05"]
[EventType "swiss"]
[EventCountry "BRA"]
[SourceTitle "playchess.com"]
[Source "ChessBase"]
[SourceQuality "1"]
[TimeControl "40/5400+30:1800+30"]

1. d4 {[%emt 0:01:16]} Nf6 {[%emt 0:01:48]} 2. Bf4 {[%emt 0:00:14]} e6 {[%emt 0:00:56]} 3. e3 {[%emt 0:00:10]} c5 {[%emt 0:00:36]} 4. Nf3 {[%emt 0:00:52]} cxd4 {[%emt 0:01:07]} 5. exd4 {[%emt 0:00:09]} b6 {[%emt 0:00:10]} 6. Nbd2 {[%emt 0:01:24]} Be7 {[%emt 0:00:40]} 7. Bd3 {[%emt 0:02:05]} Ba6 {[%emt 0:04:53]} 8. Nc4 {[%emt 0:11:28]} O-O {[%emt 0:03:16]} 9. c3 {[%emt 0:01:41]} d5 {[%emt 0:11:35]} 10. Nce5 {[%emt 0:01:17]} Bxd3 {[%emt 0:00:11]} 11. Nxd3 {[%emt 0:05:49]} Nc6 {[%emt 0:00:48]} 12. a4 {[%emt 0:02:58]} Rc8 {[%emt 0:02:58]} 13. O-O {[%emt 0:02:47]} Ne4 {[%emt 0:02:59]} 14. Re1 {[%emt 0:02:19]} Bd6 {[%emt 0:07:20]} 15. Bxd6 {[%emt 0:06:07]} Nxd6 {[%emt 0:04:29]} 16. Qe2 {[%emt 0:06:47]} Na5 {[%emt 0:07:42]} 17. Nfe5 {[%emt 0:07:38]} Nac4 {[%emt 0:01:08]} 18. Nxc4 {[%emt 0:06:57]} Nxc4 {[%emt 0:01:22]} 19. g3 {[%emt 0:00:19]} Re8 {[%emt 0:01:44]} 1/2-1/2

[Event "XIV American Continental-ch 2019"]
[Site "Sao Paulo"]
[Date "2019.07.08"]
[Round "5.4"]
[White "Supi, Luis Paulo"]
[Black "Hungaski, Robert"]
[Result "1-0"]
[ECO "A36"]
[WhiteElo "2562"]
[BlackElo "2488"]
[Annotator "ChessBase"]
[PlyCount "77"]
[EventDate "2019.07.05"]
[EventType "swiss"]
[EventCountry "BRA"]
[SourceTitle "playchess.com"]
[Source "ChessBase"]
[SourceQuality "1"]
[TimeControl "40/5400+30:1800+30"]

1. c4 {[%emt 0:01:06]} c5 {[%emt 0:01:25]} 2. g3 {[%emt 0:00:58]} Nc6 {[%emt 0:00:13]} 3. Bg2 {[%emt 0:00:22]} g6 {[%emt 0:00:06]} 4. Nc3 {[%emt 0:00:08]} Bg7 {[%emt 0:00:05]} 5. d3 {[%emt 0:03:53]} e6 {[%emt 0:02:02]} 6. Bf4 {[%emt 0:07:38]} d6 {[%emt 0:03:05]} 7. Nf3 {[%emt 0:04:49]} h6 {[%emt 0:01:50]} 8. a3 {[%emt 0:09:32]} Nge7 {[%emt 0:00:39]} 9. Rb1 {[%emt 0:00:48]} b6 {[%emt 0:06:53]} 10. Nb5 {[%emt 0:04:22]} e5 {[%emt 0:02:19]} 11. Bd2 {[%emt 0:00:17]} Be6 {[%emt 0:05:50]} 12. b4 {[%emt 0:03:56]} Rc8 {[%emt 0:04:54]} 13. bxc5 {[%emt 0:15:40]} dxc5 {[%emt 0:00:20]} 14. Qc1 {[%emt 0:01:28]} Qd7 {[%emt 0:02:35]} 15. O-O {[%emt 0:07:34]} Nf5 {[%emt 0:00:59]} 16. Nc3 {[%emt 0:00:41]} O-O {[%emt 0:09:20]} 17. e4 {[%emt 0:06:22]} Nfd4 {[%emt 0:16:07]} 18. Nxd4 {[%emt 0:01:56]} Qxd4 {[%emt 0:10:50]} 19. Be3 {[%emt 0:00:10]} Qd6 {[%emt 0:03:22]} 20. Bxh6 {[%emt 0:02:26]} Bxh6 {[%emt 0:00:22]} 21. Qxh6 {[%emt 0:00:04]} Qxd3 {[%emt 0:00:24]} 22. Nd5 {[%emt 0:02:58]} Bxd5 {[%emt 0:01:03]} 23. exd5 {[%emt 0:00:25]} Nd4 {[%emt 0:01:07]} 24. Rbe1 {[%emt 0:03:07]} Nf5 {[%emt 0:04:34]} 25. Qg5 {[%emt 0:02:21]} Nd6 {[%emt 0:03:08]} 26. Qf6 {[%emt 0:00:45]} Rcd8 {[%emt 0:02:21]} 27. h4 {[%emt 0:06:46]} Nxc4 {[%emt 0:03:00]} 28. Be4 {[%emt 0:02:00]} Qd4 {[%emt 0:01:37]} 29. h5 {[%emt 0:04:32]} Rd6 {[%emt 0:01:37]} 30. Qe7 {[%emt 0:01:50]} Rfd8 {[%emt 0:09:05]} 31. hxg6 {[%emt 0:00:51]} fxg6 {[%emt 0:00:14]} 32. Bxg6 {[%emt 0:02:15]} R8d7 {[%emt 0:00:04]} 33. Qe8+ {[%emt 0:00:39]} Kg7 {[%emt 0:00:04]} 34. Re4 {[%emt 0:00:26]} Qxd5 {[%emt 0:03:51]} 35. Rg4 {[%emt 0:00:15]} Qf3 {[%emt 0:01:17]} 36. Bh5+ {[%emt 0:00:54]} Kh6 {[%emt 0:00:38]} 37. Rg6+ {[%emt 0:00:54]} Kxh5 {[%emt 0:00:15]} 38. Rf6+ {[%emt 0:00:08]} Kg4 {[%emt 0:00:47]} 39. Qg6+ {[%emt 0:00:09]} 1-0

[Event "XIV American Continental-ch 2019"]
[Site "Sao Paulo"]
[Date "2019.07.08"]
[Round "5.5"]
[White "Perez Ponsa, Federico"]
[Black "Vazquez, Guillermo"]
[Result "1-0"]
[ECO "B48"]
[WhiteElo "2560"]
[BlackElo "2483"]
[Annotator "ChessBase"]
[PlyCount "71"]
[EventDate "2019.07.05"]
[EventType "swiss"]
[EventCountry "BRA"]
[SourceTitle "playchess.com"]
[Source "ChessBase"]
[SourceQuality "1"]
[TimeControl "40/5400+30:1800+30"]

1. e4 {[%emt 0:06:55]} c5 {[%emt 0:00:00]} 2. Nf3 {[%emt 0:00:09]} e6 {[%emt 0:00:16]} 3. d4 {[%emt 0:00:41]} cxd4 {[%emt 0:00:06]} 4. Nxd4 {[%emt 0:00:03]} Nc6 {[%emt 0:00:11]} 5. Nc3 {[%emt 0:00:24]} Qc7 {[%emt 0:00:18]} 6. Be3 {[%emt 0:01:09]} a6 {[%emt 0:00:12]} 7. Qf3 {[%emt 0:00:51]} Nf6 {[%emt 0:02:06]} 8. O-O-O {[%emt 0:00:32]} Ne5 {[%emt 0:00:30]} 9. Qg3 {[%emt 0:00:38]} b5 {[%emt 0:00:15]} 10. f4 {[%emt 0:02:26]} Neg4 {[%emt 0:00:15]} 11. Bg1 {[%emt 0:00:10]} h5 {[%emt 0:01:14]} 12. e5 {[%emt 0:02:43]} b4 {[%emt 0:00:15]} 13. Na4 {[%emt 0:00:15]} Nd5 {[%emt 0:00:49]} 14. h3 {[%emt 0:01:59]} Nh6 {[%emt 0:00:18]} 15. f5 {[%emt 0:00:56]} Bb7 {[%emt 0:08:58]} 16. Bd3 {[%emt 0:03:27]} Be7 {[%emt 0:04:17]} 17. Kb1 {[%emt 0:06:10]} h4 {[%emt 0:03:52]} 18. Qe1 {[%emt 0:02:53]} Rc8 {[%emt 0:02:43]} 19. g4 {[%emt 0:03:10]} Qa5 {[%emt 0:13:44]} 20. b3 {[%emt 0:03:04]} Nc3+ {[%emt 0:00:46]} 21. Nxc3 {[%emt 0:00:09]} bxc3 {[%emt 0:00:13]} 22. Be3 {[%emt 0:00:08]} Bxh1 {[%emt 0:02:08]} 23. Qxh1 {[%emt 0:01:00]} Qxe5 {[%emt 0:00:32]} 24. Re1 {[%emt 0:07:31]} O-O {[%emt 0:08:28]} 25. Nf3 {[%emt 0:04:41]} Qa5 {[%emt 0:06:27]} 26. f6 {[%emt 0:01:45]} Bc5 {[%emt 0:00:27]} 27. Bc1 {[%emt 0:07:07]} Ba3 {[%emt 0:06:50]} 28. Bxh6 {[%emt 0:10:16]} gxh6 {[%emt 0:00:17]} 29. Ne5 {[%emt 0:01:06]} Qd5 {[%emt 0:16:08]} 30. Qf1 {[%emt 0:02:30]} Qd4 {[%emt 0:02:14]} 31. Re4 {[%emt 0:05:08]} Qa7 {[%emt 0:01:36]} 32. g5 {[%emt 0:02:07]} d6 {[%emt 0:01:54]} 33. Qg2 {[%emt 0:05:37]} h5 {[%emt 0:02:13]} 34. g6 {[%emt 0:01:46]} fxg6 {[%emt 0:00:22]} 35. Qxg6+ {[%emt 0:00:14]} Kh8 {[%emt 0:00:12]} 36. Qxh5+ {[%emt 0:01:55]} 1-0

[Event "XIV American Continental-ch 2019"]
[Site "Sao Paulo"]
[Date "2019.07.08"]
[Round "5.7"]
[White "Escalante Ramirez, Brian Sebasti"]
[Black "Mekhitarian, Krikor Sevag"]
[Result "1/2-1/2"]
[ECO "C45"]
[WhiteElo "2447"]
[BlackElo "2545"]
[Annotator "ChessBase"]
[PlyCount "80"]
[EventDate "2019.07.05"]
[EventType "swiss"]
[EventCountry "BRA"]
[SourceTitle "playchess.com"]
[Source "ChessBase"]
[SourceQuality "1"]
[TimeControl "40/5400+30:1800+30"]

1. e4 {[%emt 0:00:00]} e5 {[%emt 0:00:00]} 2. Nf3 {[%emt 0:00:00]} Nc6 {[%emt 0:00:00]} 3. d4 {[%emt 0:00:00]} exd4 {[%emt 0:00:00]} 4. Nxd4 {[%emt 0:00:00]} Nf6 {[%emt 0:00:00]} 5. Nxc6 {[%emt 0:00:00]} bxc6 {[%emt 0:00:00]} 6. e5 {[%emt 0:00:00]} Qe7 {[%emt 0:00:10]} 7. Qe2 {[%emt 0:00:00]} Nd5 {[%emt 0:00:24]} 8. c4 {[%emt 0:00:00]} Ba6 {[%emt 0:00:17]} 9. Nd2 {[%emt 0:00:01]} g6 {[%emt 0:00:39]} 10. Nf3 {[%emt 0:00:54]} Qb4+ {[%emt 0:01:05]} 11. Kd1 {[%emt 0:00:31]} Bg7 {[%emt 0:00:16]} 12. Qd2 {[%emt 0:00:56]} Qxd2+ {[%emt 0:00:25]} 13. Bxd2 {[%emt 0:00:02]} Nb6 {[%emt 0:00:13]} 14. b3 {[%emt 0:00:01]} c5 {[%emt 0:02:01]} 15. Kc2 {[%emt 0:01:51]} Bb7 {[%emt 0:01:52]} 16. Re1 {[%emt 0:00:38]} O-O {[%emt 0:09:12]} 17. Bd3 {[%emt 0:09:28]} Rae8 {[%emt 0:15:24]} 18. Bc3 {[%emt 0:04:37]} d6 {[%emt 0:32:44]} 19. exd6 {[%emt 0:01:34]} Bxc3 {[%emt 0:01:20]} 20. Kxc3 {[%emt 0:19:41]} Bxf3 {[%emt 0:01:23]} 21. Rxe8 {[%emt 0:36:21]} Rxe8 {[%emt 0:00:20]} 22. gxf3 {[%emt 0:00:36]} cxd6 {[%emt 0:00:14]} 23. Rd1 {[%emt 0:00:50]} Kf8 {[%emt 0:13:33]} 24. Be4 {[%emt 0:05:16]} Re6 {[%emt 0:05:24]} 25. b4 {[%emt 0:00:52]} f5 {[%emt 0:00:51]} 26. Bc6 {[%emt 0:00:58]} Ke7 {[%emt 0:05:44]} 27. a4 {[%emt 0:00:25]} cxb4+ {[%emt 0:02:07]} 28. Kxb4 {[%emt 0:00:02]} Re5 {[%emt 0:01:33]} 29. a5 {[%emt 0:00:10]} Nd7 {[%emt 0:02:21]} 30. f4 {[%emt 0:00:50]} Re2 {[%emt 0:00:25]} 31. Bxd7 {[%emt 0:01:36]} Kxd7 {[%emt 0:00:02]} 32. c5 {[%emt 0:00:33]} Rb2+ {[%emt 0:01:05]} 33. Kc3 {[%emt 0:06:06]} Rxf2 {[%emt 0:00:15]} 34. Rxd6+ {[%emt 0:00:08]} Kc7 {[%emt 0:00:05]} 35. Kc4 {[%emt 0:02:42]} Rxf4+ {[%emt 0:03:06]} 36. Kd5 {[%emt 0:04:24]} Rf2 {[%emt 0:00:08]} 37. Rc6+ {[%emt 0:00:05]} Kd7 {[%emt 0:00:17]} 38. Rd6+ {[%emt 0:00:02]} Kc7 {[%emt 0:00:08]} 39. Rc6+ {[%emt 0:00:04]} Kd7 {[%emt 0:00:22]} 40. Rd6+ {[%emt 0:00:02]} Kc7 {[%emt 0:01:34] Ke4} 1/2-1/2

[Event "XIV American Continental-ch 2019"]
[Site "Sao Paulo"]
[Date "2019.07.08"]
[Round "5.8"]
[White "Santos, Marcus Vinicius More"]
[Black "Garcia Pantoja, Roberto"]
[Result "0-1"]
[ECO "D31"]
[WhiteElo "2354"]
[BlackElo "2529"]
[Annotator "ChessBase"]
[PlyCount "50"]
[EventDate "2019.07.05"]
[EventType "swiss"]
[EventCountry "BRA"]
[SourceTitle "playchess.com"]
[Source "ChessBase"]
[SourceQuality "1"]
[TimeControl "40/5400+30:1800+30"]

1. d4 {[%emt 0:00:00]} d5 {[%emt 0:00:00]} 2. c4 {[%emt 0:00:14]} e6 {[%emt 0:00:08]} 3. Nc3 {[%emt 0:00:22]} Bb4 {[%emt 0:01:12]} 4. Qa4+ {[%emt 0:05:55]} Nc6 {[%emt 0:00:14]} 5. cxd5 {[%emt 0:03:04]} exd5 {[%emt 0:01:44]} 6. Bf4 {[%emt 0:01:40]} Nge7 {[%emt 0:01:08]} 7. e3 {[%emt 0:01:22]} O-O {[%emt 0:03:32]} 8. Nf3 {[%emt 0:03:14]} Ng6 {[%emt 0:01:11]} 9. Bg3 {[%emt 0:01:29]} f5 {[%emt 0:00:11]} 10. Bb5 {[%emt 0:18:14]} f4 {[%emt 0:10:37]} 11. exf4 {[%emt 0:01:48]} Nxf4 {[%emt 0:15:28]} 12. Bxf4 {[%emt 0:10:43]} Rxf4 {[%emt 0:00:22]} 13. Bxc6 {[%emt 0:01:26]} Bxc3+ {[%emt 0:01:13]} 14. bxc3 {[%emt 0:00:09]} bxc6 {[%emt 0:01:59]} 15. Qxc6 {[%emt 0:29:31]} Re4+ {[%emt 0:26:38]} 16. Kf1 {[%emt 0:01:12]} Rb8 {[%emt 0:02:07]} 17. Kg1 {[%emt 0:06:09]} Rb2 {[%emt 0:06:16]} 18. h4 {[%emt 0:00:46]} Re6 {[%emt 0:02:05]} 19. Qa8 {[%emt 0:04:04]} Rb7 {[%emt 0:10:10]} 20. Kh2 {[%emt 0:03:45]} Reb6 {[%emt 0:02:30]} 21. Rhe1 {[%emt 0:00:46]} Rb8 {[%emt 0:03:45]} 22. Qxa7 {[%emt 0:00:19]} Ba6 {[%emt 0:03:27]} 23. Re5 {[%emt 0:00:52]} Ra8 {[%emt 0:00:28]} 24. Qxb6 {[%emt 0:02:54]} cxb6 {[%emt 0:00:02]} 25. Rae1 {[%emt 0:00:06]} Bd3 {[%emt 0:00:48]} 0-1

[Event "XIV American Continental-ch 2019"]
[Site "Sao Paulo"]
[Date "2019.07.08"]
[Round "5.9"]
[White "Gareyev, Timur"]
[Black "Quintiliano Pinto, Renato R."]
[Result "1/2-1/2"]
[ECO "A01"]
[WhiteElo "2588"]
[BlackElo "2443"]
[Annotator "ChessBase"]
[PlyCount "85"]
[EventDate "2019.07.05"]
[EventType "swiss"]
[EventCountry "BRA"]
[SourceTitle "playchess.com"]
[Source "ChessBase"]
[SourceQuality "1"]
[TimeControl "40/5400+30:1800+30"]

1. b3 {[%emt 0:09:37]} e5 {[%emt 0:00:00]} 2. Bb2 {[%emt 0:00:07]} Nc6 {[%emt 0:00:07]} 3. e3 {[%emt 0:01:28]} Nf6 {[%emt 0:01:08]} 4. Bb5 {[%emt 0:02:38]} Bd6 {[%emt 0:00:52]} 5. Nc3 {[%emt 0:05:43]} a6 {[%emt 0:03:00]} 6. Be2 {[%emt 0:04:28]} O-O {[%emt 0:05:18]} 7. g4 {[%emt 0:01:10]} Be7 {[%emt 0:11:05]} 8. Bf3 {[%emt 0:01:06]} d6 {[%emt 0:07:13]} 9. g5 {[%emt 0:02:14]} Nd7 {[%emt 0:01:18]} 10. h4 {[%emt 0:00:03]} Nb6 {[%emt 0:00:18]} 11. Bxc6 {[%emt 0:14:49]} bxc6 {[%emt 0:00:11]} 12. Nge2 {[%emt 0:08:22]} d5 {[%emt 0:07:34]} 13. d4 {[%emt 0:01:35]} e4 {[%emt 0:00:42]} 14. Nf4 {[%emt 0:00:36]} Bf5 {[%emt 0:08:45]} 15. Rg1 {[%emt 0:01:10]} Bd6 {[%emt 0:02:35]} 16. a4 {[%emt 0:00:13]} Qe7 {[%emt 0:03:28]} 17. Nce2 {[%emt 0:03:36]} f6 {[%emt 0:05:06]} 18. a5 {[%emt 0:05:15]} Nd7 {[%emt 0:04:11]} 19. Qd2 {[%emt 0:01:47]} fxg5 {[%emt 0:02:16]} 20. hxg5 {[%emt 0:00:14]} Rab8 {[%emt 0:01:06]} 21. Bc3 {[%emt 0:03:18]} Rf7 {[%emt 0:01:46]} 22. O-O-O {[%emt 0:01:06]} Nf8 {[%emt 0:00:18]} 23. Kb2 {[%emt 0:01:18]} Re8 {[%emt 0:08:18]} 24. Rg3 {[%emt 0:02:34]} g6 {[%emt 0:08:51]} 25. Rg2 {[%emt 0:07:38]} Ne6 {[%emt 0:01:30]} 26. Nxe6 {[%emt 0:01:37]} Bxe6 {[%emt 0:00:04]} 27. Nf4 {[%emt 0:00:11]} Bc8 {[%emt 0:11:28]} 28. Ra1 {[%emt 0:06:18]} Rf5 {[%emt 0:00:54]} 29. Rag1 {[%emt 0:01:20]} Rf7 {[%emt 0:01:12]} 30. Rh1 {[%emt 0:00:46]} Ref8 {[%emt 0:00:21]} 31. Qe1 {[%emt 0:00:48]} Rg7 {[%emt 0:00:29]} 32. Rh4 {[%emt 0:01:53]} Rf5 {[%emt 0:00:16]} 33. Qg1 {[%emt 0:00:30]} Qf8 {[%emt 0:01:02]} 34. Qh2 {[%emt 0:01:23]} Qe7 {[%emt 0:00:06]} 35. Qg3 {[%emt 0:00:52]} Rgf7 {[%emt 0:00:35]} 36. Qh3 {[%emt 0:00:41]} Rxf4 {[%emt 0:02:32]} 37. Qxc8+ {[%emt 0:00:01]} Rf8 {[%emt 0:00:09]} 38. Qh3 {[%emt 0:00:27]} Rxf2 {[%emt 0:00:10]} 39. Rxf2 {[%emt 0:00:28]} Rxf2 {[%emt 0:00:04]} 40. Qc8+ {[%emt 0:00:16]} Kg7 {[%emt 0:01:24]} 41. Qh3 {[%emt 0:33:20]} Kg8 {[%emt 0:09:35]} 42. Qc8+ {[%emt 0:00:00]} Kg7 {[%emt 0:03:14]} 43. Qh3 {[%emt 0:00:00]} 1/2-1/2

[Event "XIV American Continental-ch 2019"]
[Site "Sao Paulo"]
[Date "2019.07.08"]
[Round "5.10"]
[White "Gemy, Jose Daniel"]
[Black "Delgado Ramirez, Neuris"]
[Result "1/2-1/2"]
[ECO "B50"]
[WhiteElo "2371"]
[BlackElo "2605"]
[Annotator "RC"]
[PlyCount "65"]
[EventDate "2019.07.05"]
[EventType "swiss"]
[EventCountry "BRA"]
[SourceTitle "playchess.com"]
[Source "ChessBase"]
[SourceQuality "1"]
[TimeControl "40/5400+30:1800+30"]

1. e4 {[%emt 0:09:39]} c5 {[%emt 0:04:25]} 2. Nf3 {[%emt 0:00:10]} d6 {[%emt 0:00:04]} 3. g3 {[%emt 0:00:09]} g6 {[%emt 0:00:28]} 4. Bg2 {[%emt 0:00:10]} Bg7 {[%emt 0:00:05]} 5. O-O {[%emt 0:00:33]} Nc6 {[%emt 0:00:07]} 6. c3 {[%emt 0:01:34]} e5 {[%emt 0:00:17]} 7. d3 {[%emt 0:00:24]} Nge7 {[%emt 0:00:14]} 8. a3 {[%emt 0:00:05]} a5 {[%emt 0:00:08]} 9. a4 {[%emt 0:00:36]} O-O {[%emt 0:00:05]} 10. Na3 {[%emt 0:04:53]} h6 {[%emt 0:00:29]} 11. Nd2 {[%emt 0:11:22]} Be6 {[%emt 0:00:52]} 12. f4 {[%emt 0:09:08]} exf4 {[%emt 0:05:50]} 13. gxf4 {[%emt 0:00:23]} f5 {[%emt 0:00:04]} 14. Nb5 {[%emt 0:04:09]} Kh7 {[%emt 0:02:57]} 15. Qe2 {[%emt 0:05:03]} Bg8 {[%emt 0:04:57]} 16. Nc4 {[%emt 0:01:24]} d5 {[%emt 0:01:51]} 17. Ncd6 {[%emt 0:02:00]} Qd7 {[%emt 0:00:56]} 18. e5 {[%emt 0:01:51]} Nc8 {[%emt 0:00:23]} 19. Qf2 {[%emt 0:10:05]} d4 {[%emt 0:05:49]} 20. Qf3 {[%emt 0:03:45]} Nxd6 {[%emt 0:01:24]} 21. Nxd6 {[%emt 0:00:09]} Ra6 {[%emt 0:00:03]} 22. h4 {[%emt 0:04:40]} Rb6 {[%emt 0:01:19]} 23. Nb5 {[%emt 0:03:35]} Rd8 {[%emt 0:02:37]} 24. c4 {[%emt 0:03:26]} h5 {[%emt 0:02:53]} 25. Bd2 {[%emt 0:00:25]} Bf8 {[%emt 0:00:21]} 26. Qg3 {[%emt 0:00:52]} Be7 {[%emt 0:00:47]} 27. Kh2 {[%emt 0:00:09]} Bf7 {[%emt 0:00:24]} 28. b3 {[%emt 0:04:02]} Rg8 {[%emt 0:00:32]} 29. Bf3 {[%emt 0:00:58]} Qd8 {[%emt 0:00:08]} 30. Kh3 {[%emt 0:04:31]} Be6 {[%emt 0:01:37]} 31. Rae1 {[%emt 0:05:29]} Ra6 {[%emt 0:01:40]} 32. Qf2 {[%emt 0:00:56]} Qd7 {[%emt 0:01:10]} 33. Rh1 {[%emt 0:00:15]} 1/2-1/2